[Event "January 9 Early 2024"]
[Site "https://www.chess.com"]
[Date "2024.01.11"]
[Round "10"]
[White "Kruckenhauser, Arthur"]
[Black "Llari, Marc"]
[Result "1/2-1/2"]
[Board "189"]
[TimeControl "180+1"]
[WhiteFideId "1642812"]
[BlackFideId "651044269"]
[WhiteElo "2527"]
[BlackElo "2334"]
[WhiteTeam "AUT"]
[BlackTeam "FRA"]
[WhiteClock "0:00:21"]
[BlackClock "0:00:10"]

1. e4 {[%clk 0:03:00]}  e6 {[%clk 0:02:59]} 2. d4 {[%clk 0:03:00]}  d5 {[%clk 0:03:00]} 3. Nd2 {[%clk 0:03:00]}  c5 {[%clk 0:02:58]} 4. exd5 {[%clk 0:02:56]}  exd5 {[%clk 0:02:56]} 5. Bb5+ {[%clk 0:02:55]}  Nc6 {[%clk 0:02:54]} 6. Qe2+ {[%clk 0:02:51]}  Qe7 {[%clk 0:02:47]} 7. dxc5 {[%clk 0:02:47]}  Qxe2+ {[%clk 0:02:46]} 8. Nxe2 {[%clk 0:02:48]}  Bxc5 {[%clk 0:02:47]} 9. Nb3 {[%clk 0:02:48]}  Bb6 {[%clk 0:02:47]} 10. O-O {[%clk 0:02:45]}  Ne7 {[%clk 0:02:47]} 11. c3 {[%clk 0:02:41]}  O-O {[%clk 0:02:47]} 12. Bg5 {[%clk 0:02:38]}  a6 {[%clk 0:02:45]} 13. Bd3 {[%clk 0:02:36]}  Bf5 {[%clk 0:02:34]} 14. Rad1 {[%clk 0:02:30]}  Bxd3 {[%clk 0:02:31]} 15. Rxd3 {[%clk 0:02:29]}  h6 {[%clk 0:02:32]} 16. Bh4 {[%clk 0:02:28]}  Rad8 {[%clk 0:02:29]} 17. Rfd1 {[%clk 0:02:25]}  Rd7 {[%clk 0:02:28]} 18. Ned4 {[%clk 0:02:20]}  Nxd4 {[%clk 0:02:27]} 19. Nxd4 {[%clk 0:02:19]}  g5 {[%clk 0:02:23]} 20. Bg3 {[%clk 0:02:17]}  Rfd8 {[%clk 0:02:19]} 21. Kf1 {[%clk 0:02:06]}  f6 {[%clk 0:01:58]} 22. f3 {[%clk 0:01:40]}  Kf7 {[%clk 0:01:57]} 23. Bf2 {[%clk 0:01:37]}  Bxd4 {[%clk 0:01:50]} 24. Bxd4 {[%clk 0:01:31]}  Rc8 {[%clk 0:01:48]} 25. Re1 {[%clk 0:01:17]}  Nf5 {[%clk 0:01:43]} 26. Bf2 {[%clk 0:01:16]}  Rc4 {[%clk 0:01:39]} 27. g4 {[%clk 0:01:15]}  Ne7 {[%clk 0:01:33]} 28. Bd4 {[%clk 0:01:15]}  Nc6 {[%clk 0:01:29]} 29. b3 {[%clk 0:01:06]}  Rxd4 {[%clk 0:01:12]} 30. cxd4 {[%clk 0:01:05]}  Nb4 {[%clk 0:01:11]} 31. Rd2 {[%clk 0:01:05]}  Rc7 {[%clk 0:01:11]} 32. a3 {[%clk 0:01:00]}  Nc6 {[%clk 0:01:09]} 33. b4 {[%clk 0:00:58]}  Na7 {[%clk 0:01:06]} 34. Re3 {[%clk 0:00:53]}  Nb5 {[%clk 0:01:05]} 35. a4 {[%clk 0:00:51]}  Nd6 {[%clk 0:00:59]} 36. Ke2 {[%clk 0:00:50]}  Nc4 {[%clk 0:00:55]} 37. Rc2 {[%clk 0:00:50]}  Rd7 {[%clk 0:00:53]} 38. Rec3 {[%clk 0:00:45]}  b6 {[%clk 0:00:49]} 39. Kd3 {[%clk 0:00:42]}  Re7 {[%clk 0:00:49]} 40. Rxc4 {[%clk 0:00:40]}  dxc4+ {[%clk 0:00:48]} 41. Rxc4 {[%clk 0:00:40]}  Re1 {[%clk 0:00:40]} 42. Rc6 {[%clk 0:00:37]}  Ra1 {[%clk 0:00:39]} 43. a5 {[%clk 0:00:32]}  Ra3+ {[%clk 0:00:34]} 44. Ke4 {[%clk 0:00:31]}  bxa5 {[%clk 0:00:34]} 45. Rxa6 {[%clk 0:00:31]}  axb4 {[%clk 0:00:33]} 46. Rb6 {[%clk 0:00:30]}  b3 {[%clk 0:00:25]} 47. Rb7+ {[%clk 0:00:24]}  Ke6 {[%clk 0:00:24]} 48. Rb6+ {[%clk 0:00:23]}  Ke7 {[%clk 0:00:24]} 49. d5 {[%clk 0:00:21]}  Ra4+ {[%clk 0:00:11]} 50. Kf5 {[%clk 0:00:21]}  Rf4+ {[%clk 0:00:10]} 51. Kg6 {[%clk 0:00:21]}  Rxf3 {[%clk 0:00:11]} 52. d6+ {[%clk 0:00:18]}  Kd7 {[%clk 0:00:11]} 53. Kxh6 {[%clk 0:00:18]}  Rh3+ {[%clk 0:00:11]} 54. Kg6 {[%clk 0:00:18]}  Rxh2 {[%clk 0:00:11]} 55. Rxb3 {[%clk 0:00:18]}  Kxd6 {[%clk 0:00:10]} 56. Kxf6 {[%clk 0:00:15]}  Rf2+ {[%clk 0:00:08]} 57. Kxg5 {[%clk 0:00:14]}  Ke7 {[%clk 0:00:08]} 58. Rb5 {[%clk 0:00:11]}  Kf8 {[%clk 0:00:03]} 59. Rf5+ {[%clk 0:00:11]}  Rxf5+ {[%clk 0:00:02]} 60. Kxf5 {[%clk 0:00:10]}  Kf7 {[%clk 0:00:03]} 61. Kf4 {[%clk 0:00:11]}  Kf6 {[%clk 0:00:03]} 62. Ke4 {[%clk 0:00:11]}  Kg5 {[%clk 0:00:04]} 63. Kf3 {[%clk 0:00:12]}  Kg6 {[%clk 0:00:05]} 64. Kf4 {[%clk 0:00:12]}  Kf6 {[%clk 0:00:05]} 65. Ke4 {[%clk 0:00:12]}  Kg5 {[%clk 0:00:05]} 66. Kf3 {[%clk 0:00:13]}  Kg6 {[%clk 0:00:06]} 67. Kg3 {[%clk 0:00:13]}  Kg5 {[%clk 0:00:07]} 68. Kh3 {[%clk 0:00:13]}  Kg6 {[%clk 0:00:07]} 69. Kh4 {[%clk 0:00:14]}  Kh6 {[%clk 0:00:08]} 70. g5+ {[%clk 0:00:15]}  Kg6 {[%clk 0:00:08]} 71. Kg4 {[%clk 0:00:16]}  Kg7 {[%clk 0:00:09]} 72. Kf5 {[%clk 0:00:17]}  Kf7 {[%clk 0:00:09]} 73. g6+ {[%clk 0:00:17]}  Kg7 {[%clk 0:00:09]} 74. Kg5 {[%clk 0:00:18]}  Kg8 {[%clk 0:00:09]} 75. Kf5 {[%clk 0:00:19]}  Kg7 {[%clk 0:00:09]} 76. Kg5 {[%clk 0:00:20]}  Kg8 {[%clk 0:00:09]} 77. Kf6 {[%clk 0:00:20]}  Kf8 {[%clk 0:00:09]} 78. Kf5 {[%clk 0:00:21]}  Kg7 {[%clk 0:00:10]} 1/2-1/2

[Event "January 9 Early 2024"]
[Site "https://www.chess.com"]
[Date "2024.01.11"]
[Round "10"]
[White "Rustemov, Alexander"]
[Black "Caspi, Israel"]
[Result "1-0"]
[Board "193"]
[TimeControl "180+1"]
[WhiteFideId "4119002"]
[BlackFideId "2807394"]
[WhiteElo "2824"]
[BlackElo "2641"]
[WhiteTeam "RUS"]
[BlackTeam "ISR"]
[WhiteClock "0:00:27"]
[BlackClock "0:00:04"]

1. d4 {[%clk 0:03:00]}  Nf6 {[%clk 0:02:59]} 2. c4 {[%clk 0:03:01]}  e6 {[%clk 0:03:00]} 3. Nf3 {[%clk 0:03:02]}  d5 {[%clk 0:02:59]} 4. cxd5 {[%clk 0:03:02]}  exd5 {[%clk 0:03:00]} 5. Nc3 {[%clk 0:03:02]}  c6 {[%clk 0:02:59]} 6. Bf4 {[%clk 0:03:03]}  Bf5 {[%clk 0:02:59]} 7. e3 {[%clk 0:02:59]}  Bd6 {[%clk 0:02:59]} 8. Bxd6 {[%clk 0:02:57]}  Qxd6 {[%clk 0:03:00]} 9. Nh4 {[%clk 0:02:53]}  Bg4 {[%clk 0:02:57]} 10. Qc2 {[%clk 0:02:47]}  O-O {[%clk 0:02:53]} 11. Bd3 {[%clk 0:02:47]}  g6 {[%clk 0:02:52]} 12. h3 {[%clk 0:02:45]}  Be6 {[%clk 0:02:51]} 13. O-O {[%clk 0:02:44]}  Nbd7 {[%clk 0:02:50]} 14. Nf3 {[%clk 0:02:43]}  b5 {[%clk 0:02:47]} 15. Rfc1 {[%clk 0:02:40]}  Rfc8 {[%clk 0:02:45]} 16. Qd1 {[%clk 0:02:20]}  a5 {[%clk 0:02:41]} 17. b3 {[%clk 0:02:20]}  Nb6 {[%clk 0:02:22]} 18. a4 {[%clk 0:02:18]}  bxa4 {[%clk 0:02:15]} 19. Nxa4 {[%clk 0:02:17]}  Nxa4 {[%clk 0:02:15]} 20. Rxa4 {[%clk 0:02:14]}  Nd7 {[%clk 0:02:14]} 21. Rca1 {[%clk 0:02:12]}  Qc7 {[%clk 0:02:09]} 22. Qd2 {[%clk 0:02:10]}  c5 {[%clk 0:01:36]} 23. Rxa5 {[%clk 0:02:09]}  Rxa5 {[%clk 0:01:36]} 24. Qxa5 {[%clk 0:02:09]}  Qxa5 {[%clk 0:01:36]} 25. Rxa5 {[%clk 0:02:10]}  c4 {[%clk 0:01:37]} 26. Bc2 {[%clk 0:02:03]}  cxb3 {[%clk 0:01:21]} 27. Bxb3 {[%clk 0:02:03]}  Rc1+ {[%clk 0:01:21]} 28. Kh2 {[%clk 0:02:02]}  Nf6 {[%clk 0:01:21]} 29. Ra2 {[%clk 0:01:54]}  Ne4 {[%clk 0:01:18]} 30. g3 {[%clk 0:01:48]}  Kg7 {[%clk 0:01:16]} 31. Kg2 {[%clk 0:01:48]}  h6 {[%clk 0:01:14]} 32. Ne5 {[%clk 0:01:34]}  Kf6 {[%clk 0:01:03]} 33. h4 {[%clk 0:01:33]}  g5 {[%clk 0:00:57]} 34. hxg5+ {[%clk 0:01:32]}  hxg5 {[%clk 0:00:58]} 35. Bc2 {[%clk 0:01:23]}  Nc3 {[%clk 0:00:56]} 36. Rb2 {[%clk 0:01:23]}  g4 {[%clk 0:00:46]} 37. Bd3 {[%clk 0:01:20]}  Kg5 {[%clk 0:00:37]} 38. Rc2 {[%clk 0:01:19]}  Rxc2 {[%clk 0:00:36]} 39. Bxc2 {[%clk 0:01:20]}  f6 {[%clk 0:00:35]} 40. Nc6 {[%clk 0:01:17]}  Bf5 {[%clk 0:00:34]} 41. Bb3 {[%clk 0:01:06]}  Be4+ {[%clk 0:00:30]} 42. Kf1 {[%clk 0:01:06]}  Bf3 {[%clk 0:00:26]} 43. Nb4 {[%clk 0:01:01]}  Kf5 {[%clk 0:00:24]} 44. Ke1 {[%clk 0:01:02]}  Ke6 {[%clk 0:00:25]} 45. Bc2 {[%clk 0:00:59]}  Kd6 {[%clk 0:00:24]} 46. Kd2 {[%clk 0:00:59]}  Ne2 {[%clk 0:00:17]} 47. Na2 {[%clk 0:00:52]}  Ng1 {[%clk 0:00:17]} 48. Nc3 {[%clk 0:00:50]}  Nh3 {[%clk 0:00:17]} 49. Ke1 {[%clk 0:00:50]}  Ng5 {[%clk 0:00:18]} 50. Bd3 {[%clk 0:00:45]}  Ke6 {[%clk 0:00:18]} 51. Ba6 {[%clk 0:00:41]}  f5 {[%clk 0:00:16]} 52. Bc8+ {[%clk 0:00:41]}  Kf6 {[%clk 0:00:17]} 53. Bb7 {[%clk 0:00:38]}  Ke6 {[%clk 0:00:17]} 54. Kd2 {[%clk 0:00:38]}  Nh3 {[%clk 0:00:16]} 55. Bc8+ {[%clk 0:00:38]}  Kf6 {[%clk 0:00:16]} 56. Ke1 {[%clk 0:00:38]}  Ng5 {[%clk 0:00:16]} 57. Ba6 {[%clk 0:00:32]}  Ke6 {[%clk 0:00:16]} 58. Bd3 {[%clk 0:00:32]}  Kf6 {[%clk 0:00:16]} 59. Bc2 {[%clk 0:00:32]}  Ke6 {[%clk 0:00:16]} 60. Bb3 {[%clk 0:00:32]}  Kd6 {[%clk 0:00:16]} 61. Na4 {[%clk 0:00:32]}  Ne4 {[%clk 0:00:15]} 62. Bc2 {[%clk 0:00:31]}  Ng5 {[%clk 0:00:14]} 63. Nc5 {[%clk 0:00:31]}  Be4 {[%clk 0:00:14]} 64. Bd1 {[%clk 0:00:30]}  Bb1 {[%clk 0:00:12]} 65. Be2 {[%clk 0:00:29]}  Ne4 {[%clk 0:00:11]} 66. Nxe4+ {[%clk 0:00:28]}  dxe4 {[%clk 0:00:10]} 67. Kd2 {[%clk 0:00:28]}  Ba2 {[%clk 0:00:09]} 68. Kc3 {[%clk 0:00:28]}  Kd5 {[%clk 0:00:09]} 69. Ba6 {[%clk 0:00:27]}  Kd6 {[%clk 0:00:10]} 70. Bc8 {[%clk 0:00:27]}  Be6 {[%clk 0:00:03]} 71. Bxe6 {[%clk 0:00:26]}  Kxe6 {[%clk 0:00:04]} 72. Kc4 {[%clk 0:00:27]}  Kd6 {[%clk 0:00:04]} 73. d5 {[%clk 0:00:27]}  Kd7 {[%clk 0:00:03]} 74. Kc5 {[%clk 0:00:26]}  Kc7 {[%clk 0:00:03]} 75. d6+ {[%clk 0:00:27]}  Kd7 {[%clk 0:00:04]} 76. Kd5 {[%clk 0:00:27]} 1-0

[Event "January 9 Early 2024"]
[Site "https://www.chess.com"]
[Date "2024.01.11"]
[Round "10"]
[White "Subramanian, Anusha"]
[Black "Gonzalez Vega, Alejandro"]
[Result "1/2-1/2"]
[Board "194"]
[TimeControl "180+1"]
[WhiteFideId "477710"]
[BlackFideId "3510042"]
[WhiteElo "2108"]
[BlackElo "2246"]
[WhiteTeam "ENG"]
[BlackTeam "CUB"]
[WhiteClock "0:00:05"]
[BlackClock "0:00:26"]

1. e4 {[%clk 0:03:00]}  c5 {[%clk 0:02:59]} 2. Nf3 {[%clk 0:03:01]}  a6 {[%clk 0:02:58]} 3. d4 {[%clk 0:03:01]}  cxd4 {[%clk 0:02:58]} 4. Nxd4 {[%clk 0:03:02]}  Nf6 {[%clk 0:02:58]} 5. Nc3 {[%clk 0:03:02]}  e5 {[%clk 0:02:58]} 6. Nb3 {[%clk 0:02:58]}  d6 {[%clk 0:02:55]} 7. f3 {[%clk 0:02:58]}  Be6 {[%clk 0:02:54]} 8. Be3 {[%clk 0:02:58]}  Be7 {[%clk 0:02:54]} 9. Qd2 {[%clk 0:02:58]}  Qc7 {[%clk 0:02:54]} 10. g4 {[%clk 0:02:59]}  Nbd7 {[%clk 0:02:54]} 11. h4 {[%clk 0:02:58]}  Nb6 {[%clk 0:02:48]} 12. h5 {[%clk 0:02:55]}  Nc4 {[%clk 0:02:39]} 13. Bxc4 {[%clk 0:02:55]}  Qxc4 {[%clk 0:02:37]} 14. g5 {[%clk 0:02:53]}  Nd7 {[%clk 0:02:37]} 15. O-O-O {[%clk 0:02:47]}  Rc8 {[%clk 0:01:28]} 16. g6 {[%clk 0:02:45]}  fxg6 {[%clk 0:01:13]} 17. hxg6 {[%clk 0:02:16]}  h6 {[%clk 0:01:13]} 18. Kb1 {[%clk 0:01:58]}  Rf8 {[%clk 0:01:12]} 19. f4 {[%clk 0:01:55]}  exf4 {[%clk 0:00:55]} 20. Bxf4 {[%clk 0:01:56]}  Ne5 {[%clk 0:00:55]} 21. Rhf1 {[%clk 0:01:28]}  b5 {[%clk 0:00:39]} 22. Bxe5 {[%clk 0:01:18]}  Rxf1 {[%clk 0:00:38]} 23. Bxg7 {[%clk 0:01:08]}  Rxd1+ {[%clk 0:00:38]} 24. Qxd1 {[%clk 0:01:06]}  b4 {[%clk 0:00:36]} 25. Ne2 {[%clk 0:00:47]}  Qxe4 {[%clk 0:00:35]} 26. Bxh6 {[%clk 0:00:17]}  Qxg6 {[%clk 0:00:34]} 27. Bf4 {[%clk 0:00:17]}  Bf5 {[%clk 0:00:33]} 28. Ned4 {[%clk 0:00:15]}  Be4 {[%clk 0:00:33]} 29. Qe2 {[%clk 0:00:08]}  d5 {[%clk 0:00:32]} 30. Be3 {[%clk 0:00:03]}  a5 {[%clk 0:00:31]} 31. Nxa5 {[%clk 0:00:02]}  Bc5 {[%clk 0:00:30]} 32. Nab3 {[%clk 0:00:02]}  Bxd4 {[%clk 0:00:30]} 33. Nxd4 {[%clk 0:00:03]}  Qf6 {[%clk 0:00:28]} 34. b3 {[%clk 0:00:02]}  Qg6 {[%clk 0:00:22]} 35. Qb5+ {[%clk 0:00:02]}  Kf8 {[%clk 0:00:21]} 36. Qe2 {[%clk 0:00:02]}  Kg7 {[%clk 0:00:21]} 37. Qf2 {[%clk 0:00:02]}  Rf8 {[%clk 0:00:20]} 38. Qe2 {[%clk 0:00:03]}  Qg2 {[%clk 0:00:18]} 39. Qxg2+ {[%clk 0:00:02]}  Bxg2 {[%clk 0:00:18]} 40. Ne6+ {[%clk 0:00:03]}  Kf7 {[%clk 0:00:19]} 41. Nxf8 {[%clk 0:00:04]}  Kxf8 {[%clk 0:00:19]} 42. Bc5+ {[%clk 0:00:05]}  Kf7 {[%clk 0:00:19]} 43. Bxb4 {[%clk 0:00:06]}  Be4 {[%clk 0:00:20]} 44. Bd2 {[%clk 0:00:07]}  Ke6 {[%clk 0:00:20]} 45. Kb2 {[%clk 0:00:07]}  Kd6 {[%clk 0:00:20]} 46. Kc3 {[%clk 0:00:07]}  Kc6 {[%clk 0:00:21]} 47. Kd4 {[%clk 0:00:08]}  Bxc2 {[%clk 0:00:21]} 48. b4 {[%clk 0:00:07]}  Ba4 {[%clk 0:00:21]} 49. a3 {[%clk 0:00:07]}  Bb5 {[%clk 0:00:20]} 50. Bf4 {[%clk 0:00:08]}  Ba4 {[%clk 0:00:21]} 51. Be5 {[%clk 0:00:08]}  Bb5 {[%clk 0:00:21]} 52. Bb8 {[%clk 0:00:08]}  Ba4 {[%clk 0:00:22]} 53. Ba7 {[%clk 0:00:08]}  Bb5 {[%clk 0:00:23]} 54. Bc5 {[%clk 0:00:09]}  Ba4 {[%clk 0:00:22]} 55. Be7 {[%clk 0:00:08]}  Bb3 {[%clk 0:00:23]} 56. Bc5 {[%clk 0:00:08]}  Ba4 {[%clk 0:00:23]} 57. Bf8 {[%clk 0:00:08]}  Bb5 {[%clk 0:00:24]} 58. Ke5 {[%clk 0:00:08]}  Ba4 {[%clk 0:00:24]} 59. Ke6 {[%clk 0:00:09]}  Bb5 {[%clk 0:00:24]} 60. Ke7 {[%clk 0:00:09]}  Ba4 {[%clk 0:00:25]} 61. Kd8 {[%clk 0:00:10]}  Bb5 {[%clk 0:00:25]} 62. Kc8 {[%clk 0:00:10]}  Ba4 {[%clk 0:00:26]} 63. Kb8 {[%clk 0:00:10]}  Bb5 {[%clk 0:00:27]} 64. Ka7 {[%clk 0:00:10]}  Ba4 {[%clk 0:00:28]} 65. Ka6 {[%clk 0:00:10]}  Bb5+ {[%clk 0:00:28]} 66. Ka5 {[%clk 0:00:11]}  Bc4 {[%clk 0:00:28]} 67. Bc5 {[%clk 0:00:09]}  Bd3 {[%clk 0:00:26]} 68. a4 {[%clk 0:00:09]}  Bc4 {[%clk 0:00:26]} 69. Bd4 {[%clk 0:00:10]}  Bd3 {[%clk 0:00:26]} 70. b5+ {[%clk 0:00:10]}  Kb7 {[%clk 0:00:26]} 71. b6 {[%clk 0:00:10]}  Bc4 {[%clk 0:00:26]} 72. Kb4 {[%clk 0:00:10]}  Ba6 {[%clk 0:00:26]} 73. Kc5 {[%clk 0:00:11]}  Bc4 {[%clk 0:00:26]} 74. a5 {[%clk 0:00:11]}  Bb3 {[%clk 0:00:24]} 75. Be3 {[%clk 0:00:09]}  Bc4 {[%clk 0:00:24]} 76. Bd4 {[%clk 0:00:04]}  Bb3 {[%clk 0:00:25]} 77. Kb4 {[%clk 0:00:04]}  Bc4 {[%clk 0:00:25]} 78. Ka4 {[%clk 0:00:05]}  Ka6 {[%clk 0:00:25]} 79. Bc5 {[%clk 0:00:04]}  Bb5+ {[%clk 0:00:25]} 80. Kb4 {[%clk 0:00:03]}  Bc4 {[%clk 0:00:25]} 81. Bd4 {[%clk 0:00:04]}  Kb7 {[%clk 0:00:25]} 82. Bc5 {[%clk 0:00:04]}  Ka6 {[%clk 0:00:25]} 83. Bd4 {[%clk 0:00:05]}  Kb7 {[%clk 0:00:26]} 1/2-1/2

[Event "January 9 Early 2024"]
[Site "https://www.chess.com"]
[Date "2024.01.11"]
[Round "10"]
[White "Starozhilov, Leonid"]
[Black "Kraiouchkine, Nikita"]
[Result "1-0"]
[Board "195"]
[TimeControl "180+1"]
[WhiteFideId "14106752"]
[BlackFideId "2607140"]
[WhiteElo "2780"]
[BlackElo "2627"]
[WhiteTeam "UKR"]
[BlackTeam "CAN"]
[WhiteClock "0:00:02"]
[BlackClock "0:00:01"]

1. e4 {[%clk 0:03:00]}  e5 {[%clk 0:03:00]} 2. Nf3 {[%clk 0:02:58]}  Nc6 {[%clk 0:03:00]} 3. Nc3 {[%clk 0:02:59]}  Nf6 {[%clk 0:03:00]} 4. Bb5 {[%clk 0:02:59]}  Nd4 {[%clk 0:02:58]} 5. Bd3 {[%clk 0:02:58]}  Nxf3+ {[%clk 0:02:52]} 6. Qxf3 {[%clk 0:02:58]}  d6 {[%clk 0:02:28]} 7. h3 {[%clk 0:02:54]}  Be6 {[%clk 0:02:26]} 8. Bb5+ {[%clk 0:02:27]}  c6 {[%clk 0:02:25]} 9. Ba4 {[%clk 0:02:28]}  Qd7 {[%clk 0:02:19]} 10. Bb3 {[%clk 0:02:27]}  d5 {[%clk 0:02:11]} 11. exd5 {[%clk 0:02:22]}  Nxd5 {[%clk 0:02:11]} 12. O-O {[%clk 0:02:10]}  Be7 {[%clk 0:02:06]} 13. Re1 {[%clk 0:02:09]}  Bf6 {[%clk 0:01:40]} 14. d4 {[%clk 0:01:54]}  exd4 {[%clk 0:01:36]} 15. Nxd5 {[%clk 0:01:31]}  cxd5 {[%clk 0:01:36]} 16. Bxd5 {[%clk 0:01:31]}  O-O {[%clk 0:01:36]} 17. Bxb7 {[%clk 0:01:27]}  Rad8 {[%clk 0:01:29]} 18. Be4 {[%clk 0:01:27]}  Qb5 {[%clk 0:01:18]} 19. Bd3 {[%clk 0:01:13]}  Qb4 {[%clk 0:01:15]} 20. Bh6 {[%clk 0:00:46]}  Qxb2 {[%clk 0:01:06]} 21. Qe4 {[%clk 0:00:45]}  Rfe8 {[%clk 0:00:51]} 22. Qxh7+ {[%clk 0:00:41]}  Kf8 {[%clk 0:00:52]} 23. Bf4 {[%clk 0:00:27]}  Ke7 {[%clk 0:00:33]} 24. Rab1 {[%clk 0:00:27]}  Qxa2 {[%clk 0:00:32]} 25. Qe4 {[%clk 0:00:19]}  Kf8 {[%clk 0:00:24]} 26. Rb7 {[%clk 0:00:15]}  Qd5 {[%clk 0:00:15]} 27. Rxa7 {[%clk 0:00:09]}  Qxe4 {[%clk 0:00:12]} 28. Rxe4 {[%clk 0:00:09]}  Ra8 {[%clk 0:00:11]} 29. Rxa8 {[%clk 0:00:09]}  Rxa8 {[%clk 0:00:12]} 30. Re1 {[%clk 0:00:09]}  Rc8 {[%clk 0:00:09]} 31. Rb1 {[%clk 0:00:07]}  g6 {[%clk 0:00:09]} 32. Bd6+ {[%clk 0:00:06]}  Kg7 {[%clk 0:00:09]} 33. f3 {[%clk 0:00:04]}  Rc6 {[%clk 0:00:09]} 34. Bf4 {[%clk 0:00:04]}  Bc4 {[%clk 0:00:06]} 35. Rd1 {[%clk 0:00:02]}  Be6 {[%clk 0:00:06]} 36. Re1 {[%clk 0:00:02]}  Rb6 {[%clk 0:00:06]} 37. Be5 {[%clk 0:00:02]}  Rb2 {[%clk 0:00:03]} 38. Bxf6+ {[%clk 0:00:02]}  Kxf6 {[%clk 0:00:04]} 39. Kf2 {[%clk 0:00:02]}  Ke7 {[%clk 0:00:04]} 40. Re4 {[%clk 0:00:02]}  Rb4 {[%clk 0:00:04]} 41. h4 {[%clk 0:00:01]}  Kd6 {[%clk 0:00:04]} 42. Re2 {[%clk 0:00:02]}  Bd5 {[%clk 0:00:04]} 43. g4 {[%clk 0:00:02]}  Ra4 {[%clk 0:00:04]} 44. Kg3 {[%clk 0:00:02]}  Ra1 {[%clk 0:00:05]} 45. Rf2 {[%clk 0:00:03]}  Rg1+ {[%clk 0:00:05]} 46. Kf4 {[%clk 0:00:03]}  Re1 {[%clk 0:00:04]} 47. Kg5 {[%clk 0:00:02]}  Ke7 {[%clk 0:00:04]} 48. h5 {[%clk 0:00:01]}  gxh5 {[%clk 0:00:05]} 49. Kxh5 {[%clk 0:00:01]}  Re5+ {[%clk 0:00:06]} 50. Kh4 {[%clk 0:00:02]}  Re3 {[%clk 0:00:06]} 51. Kg3 {[%clk 0:00:02]}  Kf6 {[%clk 0:00:06]} 52. Kf4 {[%clk 0:00:02]}  Re7 {[%clk 0:00:05]} 53. Re2 {[%clk 0:00:01]}  Rc7 {[%clk 0:00:05]} 54. g5+ {[%clk 0:00:02]}  Kg7 {[%clk 0:00:06]} 55. Re5 {[%clk 0:00:02]}  Bc4 {[%clk 0:00:06]} 56. Re4 {[%clk 0:00:02]}  Bd5 {[%clk 0:00:04]} 57. Rxd4 {[%clk 0:00:02]}  Bb7 {[%clk 0:00:05]} 58. Kg4 {[%clk 0:00:02]}  Rc5 {[%clk 0:00:05]} 59. f4 {[%clk 0:00:02]}  Bc8+ {[%clk 0:00:04]} 60. f5 {[%clk 0:00:02]}  f6 {[%clk 0:00:05]} 61. gxf6+ {[%clk 0:00:02]}  Kxf6 {[%clk 0:00:05]} 62. Rd6+ {[%clk 0:00:02]}  Ke5 {[%clk 0:00:06]} 63. Rd8 {[%clk 0:00:03]}  Bb7 {[%clk 0:00:05]} 64. Kg5 {[%clk 0:00:03]}  Rc7 {[%clk 0:00:03]} 65. Re8+ {[%clk 0:00:03]}  Kd6 {[%clk 0:00:03]} 66. Re1 {[%clk 0:00:03]}  Rc5 {[%clk 0:00:03]} 67. Kg6 {[%clk 0:00:03]}  Ra5 {[%clk 0:00:02]} 68. Re6+ {[%clk 0:00:03]}  Kd7 {[%clk 0:00:02]} 69. Re3 {[%clk 0:00:02]}  Bd5 {[%clk 0:00:03]} 70. f6 {[%clk 0:00:03]}  Ra1 {[%clk 0:00:02]} 71. Rg3 {[%clk 0:00:02]}  Re1 {[%clk 0:00:01]} 72. Kg7 {[%clk 0:00:02]} 1-0